[Event "45th Sitges Open 2019"]
[Site "Sitges"]
[Date "2019.07.22"]
[Round "1.2"]
[White "Guasch Figuerola, Agusti"]
[Black "Guliyev, Namig"]
[Result "0-1"]
[ECO "A13"]
[WhiteElo "2071"]
[BlackElo "2551"]
[Annotator "ChessBase"]
[PlyCount "64"]
[EventDate "2019.07.21"]
[EventType "swiss"]
[EventCountry "ESP"]
[SourceTitle "playchess.com"]
[Source "ChessBase"]
[SourceQuality "1"]
[TimeControl "40/5400+30:1800+30"]

1. c4 {[%emt 0:00:09]} e6 {[%emt 0:00:15]} 2. g3 {[%emt 0:01:04]} d5 {[%emt 0:00:11]} 3. Nf3 {[%emt 0:00:10]} d4 {[%emt 0:00:53]} 4. Bg2 {[%emt 0:00:16]} Nc6 {[%emt 0:00:45]} 5. O-O {[%emt 0:00:16]} g6 {[%emt 0:01:07]} 6. e3 {[%emt 0:00:51]} Bg7 {[%emt 0:00:10]} 7. exd4 {[%emt 0:00:34]} Nge7 {[%emt 0:02:08]} 8. Nc3 {[%emt 0:03:57]} O-O {[%emt 0:02:27]} 9. d3 {[%emt 0:02:09]} Nxd4 {[%emt 0:00:11]} 10. Nxd4 {[%emt 0:00:05]} Bxd4 {[%emt 0:00:06]} 11. Ne2 {[%emt 0:04:17]} Bg7 {[%emt 0:00:28]} 12. d4 {[%emt 0:00:55]} Nf5 {[%emt 0:00:07]} 13. d5 {[%emt 0:09:28]} exd5 {[%emt 0:01:08]} 14. cxd5 {[%emt 0:00:11]} Re8 {[%emt 0:00:30]} 15. Nc3 {[%emt 0:02:46]} Bd7 {[%emt 0:00:52]} 16. h4 {[%emt 0:08:09]} Qf6 {[%emt 0:04:02]} 17. Bg5 {[%emt 0:17:52]} Qb6 {[%emt 0:00:11]} 18. Ne4 {[%emt 0:08:05]} h6 {[%emt 0:04:05]} 19. Bf4 {[%emt 0:03:11]} Rad8 {[%emt 0:00:18]} 20. Rb1 {[%emt 0:10:27]} c6 {[%emt 0:02:53]} 21. d6 {[%emt 0:04:25]} Be6 {[%emt 0:00:07]} 22. Qa4 {[%emt 0:01:48]} Bd5 {[%emt 0:02:54]} 23. Rfd1 {[%emt 0:02:14]} Bxe4 {[%emt 0:06:37]} 24. Bxe4 {[%emt 0:00:04]} Nd4 {[%emt 0:00:07]} 25. Bd3 {[%emt 0:05:43]} g5 {[%emt 0:05:19]} 26. hxg5 {[%emt 0:09:28]} hxg5 {[%emt 0:01:21]} 27. Bxg5 {[%emt 0:01:20]} Nf3+ {[%emt 0:00:10]} 28. Kg2 {[%emt 0:00:01]} Nxg5 {[%emt 0:00:08]} 29. Qh4 {[%emt 0:00:17]} Qc5 {[%emt 0:00:25]} 30. d7 {[%emt 0:01:30]} Re7 {[%emt 0:00:29]} 31. Bc4 {[%emt 0:03:15]} Rexd7 {[%emt 0:01:13]} 32. Rdc1 {[%emt 0:00:15]} Qf5 {[%emt 0:00:22]} 0-1

[Event "45th Sitges Open 2019"]
[Site "Sitges"]
[Date "2019.07.22"]
[Round "1.3"]
[White "Volkov, Sergey"]
[Black "Chirivi C, Angie Lizeth"]
[Result "1-0"]
[ECO "D97"]
[WhiteElo "2548"]
[BlackElo "2069"]
[Annotator "ChessBase"]
[PlyCount "63"]
[EventDate "2019.07.21"]
[EventType "swiss"]
[EventCountry "ESP"]
[SourceTitle "playchess.com"]
[Source "ChessBase"]
[SourceQuality "1"]
[TimeControl "40/5400+30:1800+30"]

1. d4 {[%emt 0:00:00]} Nf6 {[%emt 0:00:00]} 2. c4 {[%emt 0:00:00]} g6 {[%emt 0:00:24]} 3. Nc3 {[%emt 0:00:00]} d5 {[%emt 0:00:39]} 4. Nf3 {[%emt 0:00:05]} Bg7 {[%emt 0:00:42]} 5. Qb3 {[%emt 0:00:12]} dxc4 {[%emt 0:00:56]} 6. Qxc4 {[%emt 0:00:05]} O-O {[%emt 0:00:52]} 7. e4 {[%emt 0:00:08]} Nfd7 {[%emt 0:05:56]} 8. Be2 {[%emt 0:02:55]} Nb6 {[%emt 0:00:07]} 9. Qc5 {[%emt 0:00:58]} Bg4 {[%emt 0:01:10]} 10. Be3 {[%emt 0:01:16]} N8d7 {[%emt 0:05:59]} 11. Qg5 {[%emt 0:02:37]} Nf6 {[%emt 0:07:13]} 12. Rd1 {[%emt 0:03:27]} c6 {[%emt 0:02:25]} 13. O-O {[%emt 0:02:32]} Bxf3 {[%emt 0:09:07]} 14. Bxf3 {[%emt 0:00:47]} Nfd7 {[%emt 0:00:21]} 15. e5 {[%emt 0:03:18]} Re8 {[%emt 0:12:00]} 16. h4 {[%emt 0:02:55]} Nc4 {[%emt 0:07:40]} 17. Bc1 {[%emt 0:00:56]} Qa5 {[%emt 0:03:22]} 18. h5 {[%emt 0:01:48]} f6 {[%emt 0:01:42]} 19. Qg3 {[%emt 0:02:20]} fxe5 {[%emt 0:09:19]} 20. d5 {[%emt 0:03:34]} Nf6 {[%emt 0:09:36]} 21. hxg6 {[%emt 0:04:35]} Rad8 {[%emt 0:02:55]} 22. dxc6 {[%emt 0:05:30]} bxc6 {[%emt 0:03:58]} 23. Bxc6 {[%emt 0:00:18]} Rxd1 {[%emt 0:00:41]} 24. Rxd1 {[%emt 0:00:11]} Rd8 {[%emt 0:00:18]} 25. Rxd8+ {[%emt 0:01:02]} Qxd8 {[%emt 0:00:10]} 26. Ba4 {[%emt 0:05:02]} Kh8 {[%emt 0:02:27]} 27. Qh3 {[%emt 0:01:17]} Nd2 {[%emt 0:04:39]} 28. Bb5 {[%emt 0:03:14]} e4 {[%emt 0:02:26]} 29. Qe3 {[%emt 0:02:18]} Nb1 {[%emt 0:05:18]} 30. Nxb1 {[%emt 0:01:01]} Qd1+ {[%emt 0:00:25]} 31. Bf1 {[%emt 0:00:14]} Qh5 {[%emt 0:00:27]} 32. Qxa7 {[%emt 0:02:19]} 1-0

[Event "45th Sitges Open 2019"]
[Site "Sitges"]
[Date "2019.07.22"]
[Round "1.4"]
[White "Bhavesh, Mahajan"]
[Black "Munoz, Miguel"]
[Result "0-1"]
[ECO "B34"]
[WhiteElo "2051"]
[BlackElo "2511"]
[Annotator "ChessBase"]
[PlyCount "120"]
[EventDate "2019.07.21"]
[EventType "swiss"]
[EventCountry "ESP"]
[SourceTitle "playchess.com"]
[Source "ChessBase"]
[SourceQuality "1"]
[TimeControl "40/5400+30:1800+30"]

1. e4 {[%emt 0:00:00]} c5 {[%emt 0:01:10]} 2. Nf3 {[%emt 0:00:00]} Nc6 {[%emt 0:00:10]} 3. d4 {[%emt 0:00:00]} cxd4 {[%emt 0:00:06]} 4. Nxd4 {[%emt 0:00:00]} Nf6 {[%emt 0:00:08]} 5. Nc3 {[%emt 0:00:00]} e5 {[%emt 0:00:10]} 6. Ndb5 {[%emt 0:00:11]} d6 {[%emt 0:00:09]} 7. a4 {[%emt 0:00:09]} a6 {[%emt 0:00:08]} 8. Na3 {[%emt 0:00:01]} Be7 {[%emt 0:01:06]} 9. Bc4 {[%emt 0:00:12]} Be6 {[%emt 0:00:11]} 10. O-O {[%emt 0:00:26]} Nxe4 {[%emt 0:04:18]} 11. Bxe6 {[%emt 0:03:43]} Nxc3 {[%emt 0:02:50]} 12. Bxf7+ {[%emt 0:00:50]} Kxf7 {[%emt 0:00:08]} 13. Qf3+ {[%emt 0:12:37]} Bf6 {[%emt 0:01:53]} 14. Qxc3 {[%emt 0:00:20]} d5 {[%emt 0:01:34]} 15. Be3 {[%emt 0:10:18]} Qd7 {[%emt 0:06:27]} 16. Rfd1 {[%emt 0:05:59]} Rac8 {[%emt 0:01:10]} 17. Qb3 {[%emt 0:09:13]} Ne7 {[%emt 0:00:27]} 18. c3 {[%emt 0:02:17]} Qe6 {[%emt 0:04:12]} 19. Rd2 {[%emt 0:07:50]} Rc7 {[%emt 0:03:05]} 20. Rad1 {[%emt 0:01:04]} Rhc8 {[%emt 0:05:42]} 21. h3 {[%emt 0:02:29]} h6 {[%emt 0:01:58]} 22. Re1 {[%emt 0:07:03]} Rd7 {[%emt 0:07:48]} 23. Red1 {[%emt 0:03:38]} Rdc7 {[%emt 0:09:24]} 24. Re1 {[%emt 0:01:03]} Rd7 {[%emt 0:05:31]} 25. Red1 {[%emt 0:00:04]} Kg8 {[%emt 0:05:20]} 26. Nc2 {[%emt 0:01:55]} Nf5 {[%emt 0:00:10]} 27. Nb4 {[%emt 0:05:56]} Nxe3 {[%emt 0:02:12]} 28. fxe3 {[%emt 0:00:04]} Bg5 {[%emt 0:00:06]} 29. Rxd5 {[%emt 0:05:23]} Bxe3+ {[%emt 0:00:54]} 30. Kh1 {[%emt 0:00:16]} Rf8 {[%emt 0:01:06]} 31. c4 {[%emt 0:02:14]} Rf3 {[%emt 0:10:20]} 32. Qc2 {[%emt 0:11:31]} Rxd5 {[%emt 0:01:16]} 33. Nxd5 {[%emt 0:01:30]} Rxh3+ {[%emt 0:00:36]} 34. gxh3 {[%emt 0:00:02]} Qxh3+ {[%emt 0:00:12]} 35. Qh2 {[%emt 0:00:08]} Qf3+ {[%emt 0:00:06]} 36. Qg2 {[%emt 0:00:04]} Qh5+ {[%emt 0:06:43]} 37. Qh2 {[%emt 0:00:02]} Qxd1+ {[%emt 0:00:23]} 38. Kg2 {[%emt 0:00:04]} Qc2+ {[%emt 0:03:18]} 39. Kh3 {[%emt 0:00:37]} Qf5+ {[%emt 0:00:20]} 40. Kg2 {[%emt 0:00:00]} Qe4+ {[%emt 0:00:00]} 41. Kh3 {[%emt 0:01:16]} Bf4 {[%emt 0:06:05]} 42. Qf2 {[%emt 0:01:30]} Qxc4 {[%emt 0:00:51]} 43. Nxf4 {[%emt 0:00:41]} exf4 {[%emt 0:02:18]} 44. Kg4 {[%emt 0:00:24]} Qe6+ {[%emt 0:00:26]} 45. Kf3 {[%emt 0:00:09]} Qd5+ {[%emt 0:00:16]} 46. Kg4 {[%emt 0:00:09]} Qg5+ {[%emt 0:00:24]} 47. Kf3 {[%emt 0:00:02]} Qg3+ {[%emt 0:00:15]} 48. Qxg3 {[%emt 0:00:04]} fxg3 {[%emt 0:00:09]} 49. Kxg3 {[%emt 0:00:02]} Kf7 {[%emt 0:00:17]} 50. Kf4 {[%emt 0:00:05]} Ke6 {[%emt 0:00:11]} 51. Ke4 {[%emt 0:00:04]} g5 {[%emt 0:00:09]} 52. Kd4 {[%emt 0:00:04]} h5 {[%emt 0:00:11]} 53. Kc5 {[%emt 0:00:03]} g4 {[%emt 0:00:12]} 54. Kb6 {[%emt 0:00:03]} g3 {[%emt 0:00:13]} 55. Kxb7 {[%emt 0:00:02]} a5 {[%emt 0:00:28]} 56. Ka6 {[%emt 0:00:03]} g2 {[%emt 0:00:09]} 57. Kxa5 {[%emt 0:00:03]} g1=Q {[%emt 0:00:11]} 58. b4 {[%emt 0:00:04]} Kd5 {[%emt 0:00:16]} 59. b5 {[%emt 0:00:04]} Kc5 {[%emt 0:00:18]} 60. b6 {[%emt 0:00:08]} Qb1 {[%emt 0:00:11]} 0-1

[Event "45th Sitges Open 2019"]
[Site "Sitges"]
[Date "2019.07.22"]
[Round "1.5"]
[White "Oliva Castaneda, Kevel"]
[Black "Vigo Allepuz, David"]
[Result "1-0"]
[ECO "C05"]
[WhiteElo "2467"]
[BlackElo "2045"]
[Annotator "ChessBase"]
[PlyCount "47"]
[EventDate "2019.07.21"]
[EventType "swiss"]
[EventCountry "ESP"]
[SourceTitle "playchess.com"]
[Source "ChessBase"]
[SourceQuality "1"]
[TimeControl "40/5400+30:1800+30"]

1. d4 {[%emt 0:00:00]} e6 {[%emt 0:00:00]} 2. e4 {[%emt 0:00:57]} d5 {[%emt 0:00:00]} 3. Nd2 {[%emt 0:00:03]} Nf6 {[%emt 0:00:00]} 4. e5 {[%emt 0:00:05]} Nfd7 {[%emt 0:00:00]} 5. f4 {[%emt 0:00:29]} c5 {[%emt 0:00:00]} 6. Ngf3 {[%emt 0:00:04]} Nc6 {[%emt 0:00:04]} 7. Nb3 {[%emt 0:00:03]} cxd4 {[%emt 0:03:16]} 8. Nbxd4 {[%emt 0:00:16]} Nxd4 {[%emt 0:00:42]} 9. Nxd4 {[%emt 0:00:48]} Bc5 {[%emt 0:00:20]} 10. c3 {[%emt 0:03:51]} a6 {[%emt 0:03:46]} 11. Be3 {[%emt 0:00:22]} Qc7 {[%emt 0:06:16]} 12. Bd3 {[%emt 0:00:55]} Bxd4 {[%emt 0:01:46]} 13. cxd4 {[%emt 0:02:14]} Qa5+ {[%emt 0:00:23]} 14. Kf2 {[%emt 0:03:15]} Nb6 {[%emt 0:03:00]} 15. b3 {[%emt 0:02:42]} Qa3 {[%emt 0:01:25]} 16. Qc2 {[%emt 0:01:33]} Bd7 {[%emt 0:10:52]} 17. Qc7 {[%emt 0:01:09]} Nc4 {[%emt 0:00:06]} 18. Bc1 {[%emt 0:03:26]} Qb4 {[%emt 0:00:07]} 19. bxc4 {[%emt 0:07:05]} Rc8 {[%emt 0:01:05]} 20. Qd6 {[%emt 0:00:27]} Qc3 {[%emt 0:01:32]} 21. Ba3 {[%emt 0:00:29]} Qd2+ {[%emt 0:02:50]} 22. Be2 {[%emt 0:00:25]} Qxd4+ {[%emt 0:01:12]} 23. Kg3 {[%emt 0:00:18]} g5 {[%emt 0:03:00]} 24. Qe7# 1-0

[Event "45th Sitges Open 2019"]
[Site "Sitges"]
[Date "2019.07.22"]
[Round "1.6"]
[White "Roca Planas, Edgar"]
[Black "Berdayes Ason, Dylan Isidro"]
[Result "0-1"]
[ECO "B08"]
[WhiteElo "2045"]
[BlackElo "2461"]
[Annotator "ChessBase"]
[PlyCount "64"]
[EventDate "2019.07.21"]
[EventType "swiss"]
[EventCountry "ESP"]
[SourceTitle "playchess.com"]
[Source "ChessBase"]
[SourceQuality "1"]
[TimeControl "40/5400+30:1800+30"]

1. e4 {[%emt 0:00:00]} d6 {[%emt 0:21:18]} 2. d4 {[%emt 0:00:17]} Nf6 {[%emt 0:00:18]} 3. Nc3 {[%emt 0:00:06]} g6 {[%emt 0:00:03]} 4. Nf3 {[%emt 0:00:47]} Bg7 {[%emt 0:00:02]} 5. h3 {[%emt 0:02:35]} O-O {[%emt 0:00:09]} 6. Be3 {[%emt 0:00:15]} c6 {[%emt 0:02:35]} 7. Qd2 {[%emt 0:01:50]} Nbd7 {[%emt 0:05:36]} 8. Bd3 {[%emt 0:04:02]} e5 {[%emt 0:01:47]} 9. O-O-O {[%emt 0:01:31]} b5 {[%emt 0:01:04]} 10. Ne2 {[%emt 0:07:25]} a6 {[%emt 0:04:26]} 11. Ng3 {[%emt 0:15:20]} Bb7 {[%emt 0:08:26]} 12. Bh6 {[%emt 0:08:02]} c5 {[%emt 0:00:41]} 13. d5 {[%emt 0:02:22]} c4 {[%emt 0:00:18]} 14. Bf1 {[%emt 0:11:48]} c3 {[%emt 0:00:51]} 15. bxc3 {[%emt 0:02:37]} Qa5 {[%emt 0:00:52]} 16. Bd3 {[%emt 0:14:10]} Rac8 {[%emt 0:11:28]} 17. Bxg7 {[%emt 0:11:12]} Kxg7 {[%emt 0:00:27]} 18. Qg5 {[%emt 0:00:20]} Ng8 {[%emt 0:14:06]} 19. Nf5+ {[%emt 0:06:19]} Kh8 {[%emt 0:00:03]} 20. Nh6 {[%emt 0:00:43]} f6 {[%emt 0:02:14]} 21. Qe3 {[%emt 0:01:01]} Nxh6 {[%emt 0:02:04]} 22. Qxh6 {[%emt 0:00:03]} Qxc3 {[%emt 0:00:03]} 23. h4 {[%emt 0:01:18]} Nc5 {[%emt 0:00:33]} 24. Ne1 {[%emt 0:00:56]} b4 {[%emt 0:01:58]} 25. Kb1 {[%emt 0:04:45]} Na4 {[%emt 0:00:50]} 26. Qc1 {[%emt 0:00:14]} Qc5 {[%emt 0:00:58]} 27. Rd2 {[%emt 0:01:09]} Qa5 {[%emt 0:00:01]} 28. Ka1 {[%emt 0:01:53]} Rc3 {[%emt 0:00:35]} 29. Rd1 {[%emt 0:00:54]} Ra3 {[%emt 0:00:35]} 30. Bc4 {[%emt 0:00:26]} Nc3 {[%emt 0:00:09]} 31. Nd3 {[%emt 0:00:37]} Rxa2+ {[%emt 0:00:10]} 32. Bxa2 {[%emt 0:00:06]} Qxa2# {[%emt 0:00:02]} 0-1

[Event "45th Sitges Open 2019"]
[Site "Sitges"]
[Date "2019.07.22"]
[Round "1.7"]
[White "Sreeshwan, Maralakshikari"]
[Black "Kleifges, Matthias"]
[Result "1-0"]
[ECO "A52"]
[WhiteElo "2461"]
[BlackElo "2045"]
[Annotator "ChessBase"]
[PlyCount "73"]
[EventDate "2019.07.21"]
[EventType "swiss"]
[EventCountry "ESP"]
[SourceTitle "playchess.com"]
[Source "ChessBase"]
[SourceQuality "1"]
[TimeControl "40/5400+30:1800+30"]

1. d4 {[%emt 0:00:00]} Nf6 {[%emt 0:00:00]} 2. c4 {[%emt 0:00:04]} e5 {[%emt 0:00:21]} 3. dxe5 {[%emt 0:00:04]} Ng4 {[%emt 0:00:23]} 4. Bf4 {[%emt 0:00:04]} Bb4+ {[%emt 0:00:19]} 5. Nd2 {[%emt 0:00:12]} Nc6 {[%emt 0:00:28]} 6. Ngf3 {[%emt 0:00:04]} Qe7 {[%emt 0:01:09]} 7. e3 {[%emt 0:00:06]} Ngxe5 {[%emt 0:01:14]} 8. Nxe5 {[%emt 0:00:06]} Nxe5 {[%emt 0:00:22]} 9. Be2 {[%emt 0:00:06]} b6 {[%emt 0:03:15]} 10. O-O {[%emt 0:03:51]} Bxd2 {[%emt 0:08:24]} 11. Qxd2 {[%emt 0:00:56]} Bb7 {[%emt 0:00:19]} 12. Qc3 {[%emt 0:02:59]} d6 {[%emt 0:02:38]} 13. b4 {[%emt 0:00:22]} O-O {[%emt 0:06:48]} 14. c5 {[%emt 0:00:38]} Rfe8 {[%emt 0:03:30]} 15. Rac1 {[%emt 0:00:28]} dxc5 {[%emt 0:03:31]} 16. bxc5 {[%emt 0:00:12]} Ng6 {[%emt 0:02:09]} 17. Bg3 {[%emt 0:00:19]} Bd5 {[%emt 0:01:31]} 18. a3 {[%emt 0:00:24]} c6 {[%emt 0:02:14]} 19. Rfd1 {[%emt 0:02:04]} Nh4 {[%emt 0:11:19]} 20. Bf1 {[%emt 0:17:18]} Nf5 {[%emt 0:02:07]} 21. Bf4 {[%emt 0:00:04]} g5 {[%emt 0:03:49]} 22. Bg3 {[%emt 0:00:10]} h5 {[%emt 0:00:45]} 23. Bd3 {[%emt 0:00:44]} Nxg3 {[%emt 0:02:41]} 24. hxg3 {[%emt 0:00:11]} Qe5 {[%emt 0:05:08]} 25. a4 {[%emt 0:15:51]} Rab8 {[%emt 0:06:15]} 26. Be2 {[%emt 0:08:33]} g4 {[%emt 0:02:43]} 27. Rd4 {[%emt 0:00:06]} f5 {[%emt 0:04:12]} 28. Bc4 {[%emt 0:01:28]} bxc5 {[%emt 0:03:21]} 29. Bxd5+ {[%emt 0:00:06]} cxd5 {[%emt 0:00:52]} 30. Qxc5 {[%emt 0:00:08]} Rbc8 {[%emt 0:03:29]} 31. Qxc8 {[%emt 0:01:07]} Rxc8 {[%emt 0:00:01]} 32. Rxc8+ {[%emt 0:00:11]} Kf7 {[%emt 0:00:29]} 33. Rc5 {[%emt 0:00:09]} Ke6 {[%emt 0:00:57]} 34. Ra5 {[%emt 0:00:27]} h4 {[%emt 0:03:51]} 35. Raxd5 {[%emt 0:00:35]} Qxd5 {[%emt 0:03:07]} 36. Rxd5 {[%emt 0:00:06]} Kxd5 {[%emt 0:00:52]} 37. gxh4 {[%emt 0:00:11]} 1-0

[Event "45th Sitges Open 2019"]
[Site "Sitges"]
[Date "2019.07.24"]
[Round "3.2"]
[White "Anuj, Shrivatri"]
[Black "Guliyev, Namig"]
[Result "0-1"]
[ECO "A15"]
[WhiteElo "2372"]
[BlackElo "2551"]
[Annotator "ChessBase"]
[PlyCount "66"]
[EventDate "2019.07.21"]
[EventType "swiss"]
[EventCountry "ESP"]
[SourceTitle "playchess.com"]
[Source "ChessBase"]
[SourceQuality "1"]
[TimeControl "40/5400+30:1800+30"]

1. c4 {[%emt 0:00:00]} Nf6 {[%emt 0:04:15]} 2. Nf3 {[%emt 0:00:32]} c6 {[%emt 0:01:43]} 3. Nc3 {[%emt 0:05:56]} d5 {[%emt 0:00:06]} 4. e3 {[%emt 0:00:04]} e6 {[%emt 0:00:11]} 5. Qc2 {[%emt 0:01:44]} Nbd7 {[%emt 0:00:08]} 6. b3 {[%emt 0:00:49]} a6 {[%emt 0:00:13]} 7. Bb2 {[%emt 0:01:38]} b5 {[%emt 0:00:07]} 8. d4 {[%emt 0:09:04]} Bb7 {[%emt 0:04:54]} 9. Bd3 {[%emt 0:06:08]} dxc4 {[%emt 0:09:24]} 10. bxc4 {[%emt 0:02:18]} bxc4 {[%emt 0:00:03]} 11. Bxc4 {[%emt 0:04:09]} c5 {[%emt 0:00:57]} 12. Rd1 {[%emt 0:05:39]} cxd4 {[%emt 0:00:47]} 13. Nxd4 {[%emt 0:03:33]} Qc7 {[%emt 0:00:59]} 14. Qa4 {[%emt 0:07:44]} Bxg2 {[%emt 0:05:26]} 15. Rg1 {[%emt 0:00:48]} Bb7 {[%emt 0:04:27]} 16. f4 {[%emt 0:05:42]} Rc8 {[%emt 0:02:40]} 17. Bb3 {[%emt 0:01:36]} Qb6 {[%emt 0:01:10]} 18. a3 {[%emt 0:07:44]} g6 {[%emt 0:06:29]} 19. Nce2 {[%emt 0:05:58]} Bd5 {[%emt 0:07:41]} 20. f5 {[%emt 0:04:07]} Be7 {[%emt 0:03:46]} 21. fxe6 {[%emt 0:09:36]} fxe6 {[%emt 0:01:07]} 22. Nf4 {[%emt 0:02:17]} Bxb3 {[%emt 0:00:33]} 23. Nxb3 {[%emt 0:00:22]} Qxe3+ {[%emt 0:00:58]} 24. Ne2 {[%emt 0:00:03]} Rc2 {[%emt 0:01:47]} 25. Rd2 {[%emt 0:00:11]} Rxd2 {[%emt 0:01:57]} 26. Nxd2 {[%emt 0:00:02]} O-O {[%emt 0:00:57]} 27. Rg3 {[%emt 0:00:22]} Qb6 {[%emt 0:01:08]} 28. Bd4 {[%emt 0:00:05]} Bc5 {[%emt 0:00:25]} 29. Qc4 {[%emt 0:01:13]} Bxd4 {[%emt 0:04:35]} 30. Nxd4 {[%emt 0:00:25]} Nd5 {[%emt 0:00:47]} 31. Qd3 {[%emt 0:00:11]} Nf4 {[%emt 0:01:59]} 32. Qc3 {[%emt 0:00:05]} Nc5 {[%emt 0:01:13]} 33. Qc4 {[%emt 0:01:01]} Qd6 {[%emt 0:01:51]} 0-1

[Event "45th Sitges Open 2019"]
[Site "Sitges"]
[Date "2019.07.24"]
[Round "3.7"]
[White "Valderrama Quiceno, Esteban Alb"]
[Black "Escobar Medina, Andres F"]
[Result "1/2-1/2"]
[ECO "A34"]
[WhiteElo "2423"]
[BlackElo "2296"]
[Annotator "NA"]
[PlyCount "49"]
[EventDate "2019.07.21"]
[EventType "swiss"]
[EventCountry "ESP"]
[SourceTitle "playchess.com"]
[Source "ChessBase"]
[SourceQuality "1"]
[TimeControl "40/5400+30:1800+30"]

1. c4 {[%emt 0:00:00]} Nf6 {[%emt 0:00:00]} 2. Nc3 {[%emt 0:00:41]} c5 {[%emt 0:00:04]} 3. g3 {[%emt 0:04:20]} g6 {[%emt 0:00:29]} 4. Bg2 {[%emt 0:00:15]} Bg7 {[%emt 0:00:04]} 5. e3 {[%emt 0:06:54]} O-O {[%emt 0:01:09]} 6. d4 {[%emt 0:01:42]} Nc6 {[%emt 0:00:19]} 7. Nge2 {[%emt 0:00:09]} d6 {[%emt 0:03:46]} 8. O-O {[%emt 0:00:45]} Bg4 {[%emt 0:00:38]} 9. h3 {[%emt 0:09:17]} cxd4 {[%emt 0:04:25]} 10. exd4 {[%emt 0:03:14]} Bxe2 {[%emt 0:00:54]} 11. Nxe2 {[%emt 0:00:07]} d5 {[%emt 0:00:09]} 12. cxd5 {[%emt 0:17:21]} Nxd5 {[%emt 0:00:17]} 13. Qb3 {[%emt 0:00:19]} Nb6 {[%emt 0:06:01]} 14. d5 {[%emt 0:03:13]} Na5 {[%emt 0:00:54]} 15. Qf3 {[%emt 0:03:14]} Nac4 {[%emt 0:05:21]} 16. Rb1 {[%emt 0:00:46]} Ne5 {[%emt 0:14:09]} 17. Qb3 {[%emt 0:03:30]} Qd7 {[%emt 0:07:11]} 18. Rd1 {[%emt 0:05:56]} Qf5 {[%emt 0:03:30]} 19. Bf4 {[%emt 0:06:31]} Nec4 {[%emt 0:04:26]} 20. Nc3 {[%emt 0:23:43]} Rac8 {[%emt 0:04:02]} 21. d6 {[%emt 0:02:02]} Nxd6 {[%emt 0:01:52]} 22. Bxd6 {[%emt 0:00:09]} exd6 {[%emt 0:00:02]} 23. Bxb7 {[%emt 0:01:50]} Rb8 {[%emt 0:00:18]} 24. Bg2 {[%emt 0:00:13]} d5 {[%emt 0:00:08]} 25. Nxd5 {[%emt 0:00:49]} 1/2-1/2

[Event "45th Sitges Open 2019"]
[Site "Sitges"]
[Date "2019.07.25"]
[Round "4.6"]
[White "Sturt, Raven"]
[Black "Mateus, Alejandro"]
[Result "1-0"]
[ECO "B96"]
[WhiteElo "2429"]
[BlackElo "2334"]
[Annotator "NA"]
[PlyCount "53"]
[EventDate "2019.07.21"]
[EventType "swiss"]
[EventCountry "ESP"]
[SourceTitle "playchess.com"]
[Source "ChessBase"]
[SourceQuality "1"]
[TimeControl "40/5400+30:1800+30"]

1. e4 {[%emt 0:00:00]} c5 {[%emt 0:00:00]} 2. Nf3 {[%emt 0:00:00]} d6 {[%emt 0:00:11]} 3. d4 {[%emt 0:00:00]} cxd4 {[%emt 0:00:13]} 4. Nxd4 {[%emt 0:00:00]} Nf6 {[%emt 0:00:13]} 5. Nc3 {[%emt 0:00:00]} a6 {[%emt 0:00:12]} 6. Bg5 {[%emt 0:00:00]} e6 {[%emt 0:00:45]} 7. f4 {[%emt 0:00:00]} h6 {[%emt 0:00:20]} 8. Bh4 {[%emt 0:01:37]} Qb6 {[%emt 0:02:15]} 9. Qd2 {[%emt 0:07:44]} Qxb2 {[%emt 0:02:04]} 10. Rb1 {[%emt 0:03:46]} Qa3 {[%emt 0:01:27]} 11. e5 {[%emt 0:02:32]} dxe5 {[%emt 0:11:28]} 12. fxe5 {[%emt 0:00:06]} Nfd7 {[%emt 0:04:48]} 13. Be2 {[%emt 0:09:08]} Be7 {[%emt 0:05:57]} 14. Bg3 {[%emt 0:03:50]} O-O {[%emt 0:14:23]} 15. O-O {[%emt 0:10:46]} Bg5 {[%emt 0:10:44]} 16. Qd3 {[%emt 0:01:43]} Nc5 {[%emt 0:00:25]} 17. Qf3 {[%emt 0:00:54]} Bd2 {[%emt 0:01:22]} 18. Nb3 {[%emt 0:13:10]} Nxb3 {[%emt 0:00:47]} 19. Ne4 {[%emt 0:00:33]} Nc6 {[%emt 0:19:38]} 20. Rxb3 {[%emt 0:04:14]} Qa5 {[%emt 0:00:26]} 21. Qg4 {[%emt 0:09:52]} Nxe5 {[%emt 0:11:29]} 22. Bxe5 {[%emt 0:00:16]} Qxe5 {[%emt 0:00:08]} 23. Nxd2 {[%emt 0:00:13]} f5 {[%emt 0:07:13]} 24. Qf3 {[%emt 0:01:35]} Qc5+ {[%emt 0:00:36]} 25. Kh1 {[%emt 0:01:13]} Qxc2 {[%emt 0:00:36]} 26. Nc4 {[%emt 0:00:13]} Rd8 {[%emt 0:03:18]} 27. Bd3 {[%emt 0:00:48]} 1-0